Cogmind - Beta 15 @@@ ROGUE MODE // 2025.10.20 @ 13:10:32 Player: glorp Result: Self-destructed Performance ------------- Evolutions (1) 500 Regions Visited (3) 600 Robots Destroyed (16) 80 Value Destroyed (414) 414 Prototype IDs (3) 60 Alien Tech Used (0) 0 Bonus (0) 0 TOTAL SCORE: 1654 Bonus ------- None Cogmind --------- Core Integrity 347/400 Matter 228/300 Energy 125/125 System Corruption 0% Temperature Hot (232) Movement Hovering (240) Ox3 Location -9/Mines Parts ------- > --- POWER (1) -------- Light Ion Engine > --- PROPULSION (4) --- Improved Hover Unit > --- UTILITY (2) ------ Small Storage Unit Medium Armor Plating > --- WEAPON (2) ------- Advanced Beam Cannon Grenade Launcher > --- INVENTORY (8) ---- Aluminum Leg Aluminum Leg Advanced Beam Cannon Advanced Beam Cannon Grenade Launcher Grenade Launcher Peak State ------------ > --- POWER ------------ Ion Engine > --- PROPULSION ------- Improved Hover Unit Improved Hover Unit Improved Hover Unit Improved Hover Unit > --- UTILITY ---------- Small Storage Unit Medium Armor Plating > --- WEAPON ----------- Advanced Beam Cannon Advanced Beam Cannon > --- INVENTORY -------- Light Ion Engine Aluminum Leg Aluminum Leg Advanced Beam Cannon Advanced Beam Cannon Grenade Launcher Grenade Launcher Grenade Launcher [Rating: 19] Favorites ----------- Power Ion Engine Engine Ion Engine Propulsion Improved Hover Unit Leg Aluminum Leg Hover Unit Improved Hover Unit Utility Small Storage Unit Storage Small Storage Unit Processor Visual Processing Unit Protection Medium Armor Plating Weapon Advanced Beam Cannon Energy Gun Small Laser Energy Cannon Advanced Beam Cannon Ballistic Gun Light Assault Rifle Launcher Grenade Launcher Build | -11 -10 -9 -9 ------- Run | Yrd Mat Mat Min Slots Evolved 2 | . . 2 . Power . | . . . . Propulsion 2 | . . 2 . Utility . | . . . . Weapon . | . . . . Parts Attached 18 | 6 6 5 1 Power 2 | 1 . . 1 Engine 2 | 1 . . 1 Core . | . . . . Reactor . | . . . . Propulsion 6 | 2 2 2 . Treads . | . . . . Leg 2 | 2 . . . Wheel . | . . . . Hover 4 | . 2 2 . Flight . | . . . . Utility 3 | 1 1 1 . Device . | . . . . Storage 1 | 1 . . . Processor 1 | . 1 . . Hackware . | . . . . Protection 1 | . . 1 . Artifact . | . . . . Weapon 7 | 2 3 2 . Energy Gun 2 | 1 1 . . Energy Cannon 3 | . 2 1 . Ballistic Gun 1 | 1 . . . Ballistic Cannon . | . . . . Launcher 1 | . . 1 . Special Weapon . | . . . . Impact Weapon . | . . . . Slashing Weapon . | . . . . Piercing Weapon . | . . . . Special Melee Weapon . | . . . . Unidentified Prototypes 1 | . 1 . . Parts Lost 4 | . . 2 2 Power 1 | . . . 1 Propulsion 3 | . . 2 1 Utility . | . . . . Weapon . | . . . . Highest Loss Streak 2 | . . 2 1 To Critical Strikes . | . . . . Average Backups 5 | . 4 6 6 Power . | . 1 1 . Propulsion 1 | . 1 2 2 Utility . | . . . . Weapon 2 | . 2 3 4 Tool/Special . | . . . . Unused Backups 3 | . . . 3 Power . | . . . . Propulsion . | . . . . Utility . | . . . . Weapon 3 | . . . 3 Tool/Special . | . . . . Average Slot Usage (%) 88 | . 89 90 76 Engine 12 | . 14 11 11 Leg 7 | . 16 . . Hover 25 | . 10 42 21 Storage 12 | . 14 11 11 Processor 2 | . 5 . . Protection 2 | . . 3 11 Energy Gun 3 | . 7 . . Energy Cannon 15 | . 12 20 11 Ballistic Gun 3 | . 7 . . Launcher 1 | . . 1 11 Peak Build Rating 19 | 6 15 19 13 Average Rating 12 | 4 9 17 12 On Entrance 8 | . 6 13 13 Naked Turns . | . . . . Heaviest Build 25 | 13 18 25 24 Greatest Support 28 | 20 20 28 14 Greatest Overweight (x) 5 | . 5 1 1 Average Overweight (x) . | . . . 1 Largest Inventory Capacity 8 | 8 8 8 8 Average Capacity 7 | 6 8 8 8 Most Carried 8 | 2 8 8 7 Average Carried 5 | . 5 6 6 Final Capacity 8 | 8 8 8 8 Final Carried 8 | 2 8 7 6 Class Distribution -------------------- 100% | Mutant Dominant Class ---------------- Mutant | -10/Materials Mutant | -9/Materials Mutant | -9/Mines Resources | -11 -10 -9 -9 ----------- Run | Yrd Mat Mat Min Matter Collected 446 | 170 185 73 18 Remotely . | . . . . Salvage Created 507 | . 261 128 118 Parts 19 | . 11 7 1 Haulers Intercepted . | . . . . Recyclers Shooed 1 | . 1 . . Parts Field Recycled . | . . . . Retrieved Matter . | . . . . Parts Self-Destructed . | . . . . Prevented . | . . . . Kills | -11 -10 -9 -9 ------- Run | Yrd Mat Mat Min Combat Hostiles Destroyed 17 | . 5 5 7 Guns 2 | . 2 . . Cannons 9 | . 3 4 2 AOE 6 | . . 1 5 Classes Destroyed 7 | . 2 3 2 Worker 1 | . . 1 . Recycler 1 | . 1 . . Watcher 1 | . . 1 . Swarmer 4 | . . 4 . Grunt 8 | . 5 1 2 Demolisher 1 | . . . 1 Assembled 4 | . . . 4 Best Kill Streak 4 | . 2 3 4 Combat Bots Only 4 | . 2 3 4 Max Kills in Single Turn 2 | . 1 1 2 Gunslinging . | . . . . Exploded 2 | . . 1 2 Melee . | . . . . Uniques/NPCs Destroyed . | . . . . Combat | -11 -10 -9 -9 -------- Run | Yrd Mat Mat Min Hostile Shots Fired 46 | . 19 10 17 Missed 10 | . 3 2 5 Hits 36 | . 16 8 12 Melee 1 | . . . 1 Projectile 35 | . 16 8 11 AOE 1 | . . . 1 Damage Taken 515 | . 231 104 180 Core 104 | . 51 11 42 Absorbed by Shields . | . . . . Core Remaining (%) 89 | 100 79 . . Volleys Fired 50 | . 27 14 9 Largest 2 | . 2 2 2 Hottest 136 | . 136 136 98 Shots Fired 92 | . 51 25 16 Gun 32 | . 32 . . Cannon 50 | . 19 22 9 Launcher 10 | . . 3 7 Special . | . . . . Kinetic 16 | . 16 . . Thermal 66 | . 35 22 9 Explosive 10 | . . 3 7 Electromagnetic . | . . . . Robot Hit Streak 10 | . 7 6 10 Robot Miss Streak 4 | . 3 3 4 Penetration Max . | . . . . Secondary Targets . | . . . . Shots Hit Robots 57 | . 34 11 12 Core Hits 29 | . 12 8 9 Critical Kills . | . . . . Critical Parts Destroyed . | . . . . Critical Strikes . | . . . . Melee Attacks . | . . . . Impact . | . . . . Slashing . | . . . . Piercing . | . . . . Sneak Attacks . | . . . . Combat Hostiles . | . . . . Follow-up Attacks . | . . . . Damage Inflicted 1359 | . 470 391 498 Guns 201 | . 201 . . Cannons 676 | . 268 285 123 Explosions 468 | . . 93 375 Melee . | . . . . Ramming 14 | . 1 13 . Kinetic 93 | . 93 . . Thermal 784 | . 376 285 123 Explosive 468 | . . 93 375 Electromagnetic . | . . . . Impact . | . . . . Slashing . | . . . . Piercing . | . . . . Highest Corruption . | . . . . Average Corruption . | . . . . Corruption Purged . | . . . . Corruption Blocked . | . . . . Overload Shots . | . . . . Overflow Damage 70 | . . 28 42 Projectiles 7 | . . 7 . Explosions 63 | . . 21 42 Melee . | . . . . Knockbacks . | . . . . Impact . | . . . . Kinetic . | . . . . Secondary . | . . . . Self-Inflicted Damage 39 | . . 39 . Shots 1 | . . 1 . Rammed 1 | . . 1 . Targets Rammed 2 | . 1 1 . Kicked 1 | . 1 . . Crushed . | . . . . Highest Temperature 557 | . 557 352 232 Average Temperature 138 | . 150 147 74 Received Heat Transfer 193 | . 105 12 76 Effects 10 | . 8 2 . Shutdowns 2 | . 2 . . Energy Bleed 1 | . 1 . . Interference 2 | . . 2 . Short Circuit 1 | . 1 . . Damage (minor) 1 | . 1 . . Damage (major) 2 | . 2 . . Damage (core) 1 | . 1 . . Siege Activations . | . . . . Martial Activations . | . . . . Shielding Activations . | . . . . Robots Disrupted . | . . . . Combat Hostiles . | . . . . Robots Corrupted . | . . . . Combat Hostiles . | . . . . Parts Fried . | . . . . Impact Corruptions . | . . . . Robots Melted . | . . . . Combat Hostiles . | . . . . Parts Melted 1 | . . 1 . Heat Transferred 1471 | . 731 518 222 Parts Sabotaged . | . . . . Parts Stolen . | . . . . Parts Stripped . | . . . . Power Chain Reactions . | . . . . Alert | -11 -10 -9 -9 ------- Run | Yrd Mat Mat Min Maximum Alert Level . | . . . . Low Security (%) 100 | 100 100 100 100 Level 1 . | . . . . Level 2 . | . . . . Level 3 . | . . . . Level 4 . | . . . . Level 5 . | . . . . High Security . | . . . . Max Security . | . . . . Peak Influence 92 | . 42 92 70 Initial 24 | . . 3 24 Average 13 | . 8 20 13 Influence Increases 416 | . 139 182 95 Destroy 0b10 Robot/C 260 | . 100 100 60 Destroy 0b10 Robot/NC 15 | . 5 10 . Destroy Leader 52 | . 10 22 20 Successful Hack 9 | . 9 . . Destroy Structure 35 | . . 20 15 Partial Spotted 15 | . . 15 . Lose Combat Pursuer 30 | . 15 15 . Influence Decreases 356 | . 129 129 98 Entered New Map 46 | . . 7 39 Time Decay 272 | . 129 102 41 Lost Part 38 | . . 20 18 Squads Dispatched 1 | . . 1 . Investigation . | . . . . Extermination . | . . . . Reinforcement 1 | . . 1 . Assault . | . . . . Garrison . | . . . . Intercept . | . . . . Searches Triggered . | . . . . Construction Impeded . | . . . . Haulers Reinforced . | . . . . Active Scanning Responses . | . . . . Cargo Convoy Interrupts . | . . . . Stealth | -11 -10 -9 -9 --------- Run | Yrd Mat Mat Min Distress Signals 3 | . 2 1 . Communications Jammed . | . . . . Distress Signals . | . . . . Times Spotted 35 | . 13 14 8 Peak Tracking Total 6 | . 4 6 4 Tactical Retreats 2 | . 1 1 . Traps | -11 -10 -9 -9 ------- Run | Yrd Mat Mat Min Traps Triggered 2 | . 2 . . Indirectly . | . . . . Trap Hack Attempts . | . . . . Triggered . | . . . . Disarmed . | . . . . Reprogrammed . | . . . . Reused . | . . . . Traps Extracted . | . . . . Installed . | . . . . Triggered . | . . . . Machines | -11 -10 -9 -9 ---------- Run | Yrd Mat Mat Min Machines Disabled . | . . . . Max in Single Turn . | . . . . Machines Repaired . | . . . . Machines Dismantled . | . . . . Machines Sabotaged . | . . . . Overloaded Fab Kills . | . . . . Hacking | -11 -10 -9 -9 --------- Run | Yrd Mat Mat Min Machines Accessed 1 | . 1 . . Terminals 1 | . 1 . . Fabricators . | . . . . Repair Stations . | . . . . Recycling Units . | . . . . Scanalyzers . | . . . . Garrison Access . | . . . . Total Hacks 3 | . 3 . . Successful 3 | . 3 . . Failed . | . . . . Catastrophic . | . . . . Database Lockouts . | . . . . Manual . | . . . . Terminals 3 | . 3 . . Fabricators . | . . . . Repair Stations . | . . . . Recycling Units . | . . . . Scanalyzers . | . . . . Garrison Access . | . . . . Terminal Hacks 3 | . 3 . . Prototype ID Bank 1 | . 1 . . Emergency Access Points 1 | . 1 . . Locate Traps 1 | . 1 . . Fabricator Hacks . | . . . . Repair Station Hacks . | . . . . Recycling Unit Hacks . | . . . . Scanalyzer . | . . . . Garrison Access Hacks . | . . . . Unauthorized Hacks . | . . . . Terminals . | . . . . Fabricators . | . . . . Repair Stations . | . . . . Recycling Units . | . . . . Scanalyzers . | . . . . Garrison Access . | . . . . Data Cores Recovered . | . . . . Used . | . . . . Hacking Detections 1 | . 1 . . Full Trace Events 1 | . 1 . . Feedback Events . | . . . . Feedback Blocked . | . . . . Robot Schematics Acquired . | . . . . Robots Built . | . . . . Authchips . | . . . . Time . | . . . . Total Robot Build Rating . | . . . . Part Schematics Acquired . | . . . . Parts Built . | . . . . Authchips . | . . . . Time . | . . . . Total Part Build Rating . | . . . . Parts Repaired . | . . . . Time . | . . . . Parts Recycled . | . . . . Recycled Matter . | . . . . Retrieved Matter . | . . . . Retrieved Components . | . . . . Parts Scanalyzed . | . . . . Part Schematics Acquired . | . . . . Parts Damaged . | . . . . Bothacking | -11 -10 -9 -9 ------------ Run | Yrd Mat Mat Min Used RIF Installer . | . . . . Robots Hacked . | . . . . Non-combat . | . . . . Combat . | . . . . Robot Hacks Applied . | . . . . Relay Couplers Released . | . . . . Fabnet Peak Effective % . | . . . . Robots Rewired . | . . . . Allies Hacked . | . . . . Hacks Repelled . | . . . . Allies | -11 -10 -9 -9 -------- Run | Yrd Mat Mat Min Total Allies . | . . . . Largest Group . | . . . . Highest-Rated Group . | . . . . Highest-Rated Ally . | . . . . Total Orders . | . . . . Ally Attacks . | . . . . Total Damage . | . . . . Kills . | . . . . Allies Corrupted . | . . . . Allies Melted . | . . . . Intel | -11 -10 -9 -9 ------- Run | Yrd Mat Mat Min Active Infowar (turns) 166 | . 166 . . Optics 166 | . 166 . . Robot Analysis Total . | . . . . Derelict Logs Recovered . | . . . . Drone Launches . | . . . . Drone Recoveries . | . . . . Exploration | -11 -10 -9 -9 ------------- Run | Yrd Mat Mat Min Turns Passed 1367 | 73 596 554 144 Spaces Moved 599 | 54 242 202 101 Core 4 | 3 1 . . Treads . | . . . . Legs 177 | 51 126 . . Wheels . | . . . . Hover 418 | . 115 202 101 Flight . | . . . . Fastest Speed 48 | 50 56 48 116 Average Speed 96 | 116 117 55 116 Slowest Speed 300 | 120 300 116 116 Overloaded Moves . | . . . . Propulsion Burnouts . | . . . . Robots Hopped . | . . . . Potential Cave-ins . | . . . . Cave-ins Triggered . | . . . . Exploration Rate (%) 22 | 4 45 20 22 Regions Visited 3 Branch Regions 1 Pre-discovered Areas . | . . . . Known Exits Taken . | . . . . Unknown Exits Taken 3 | 1 1 1 . Scrap Searched . | . . . . Spaces Dug . | . . . . Terrain Destroyed 59 | . . 23 36 Melee . | . . . . Projectile 2 | . . . 2 AOE 57 | . . 23 34 Terrain Rammed . | . . . . Walls Destroyed . | . . . . Machines Disabled . | . . . . Actions | -11 -10 -9 -9 --------- Run | Yrd Mat Mat Min Total 1294 | 61 502 620 111 Wait 607 | . 212 395 . Move 596 | 53 241 201 101 Hop . | . . . . Pick Up 9 | 2 5 2 . Fast Attach 15 | 6 8 1 . Attach 6 | . 1 4 1 Detach 5 | . 4 1 . Swap 2 | . 2 . . Drop 2 | . 1 1 . Fire 50 | . 27 14 9 Melee . | . . . . Ram 1 | . . 1 . Kick 1 | . 1 . . Crush . | . . . . Escape Stasis . | . . . . Rewire . | . . . . Trap . | . . . . Miscellaneous . | . . . . Route ------- -11/Scrapyard -10/Materials (discovered 3 exits: [*Mat] / [*Min x2]) -9/Materials -9/Mines History --------- Turn | Location | Event 6 | -11/Scrapyard | Discovered new exit (range 16) 74 | -11/Scrapyard | Entered Materials 76 | -10/Materials | Discovered new exit (range 7) 148 | -10/Materials | Discovered new exit (range 7) 305 | -10/Materials | Build established: Mutant 458 | -10/Materials | Discovered new exit (range 18) 670 | -10/Materials | Entered another Materials area 670 | -9/Materials | Evolved 2 slots: Propulsion x2 1210 | -9/Materials | Discovered new exit (range 11) 1224 | -9/Materials | Entered Mines 1256 | -9/Mines | Assembled infested the area 1368 | -9/Mines | Self-destructed Last Messages --------------- Something is scanning the area. 01256_ ALERT: Infestation in the mines, dispatching Demolisher response squad. 01304_ as-68146 destroyed. 01321_ Destroyed Asb. F-torch. 01321_ as-75303 destroyed. 01321_ as-73202 destroyed. 01322_ Ion Engine destroyed. 01324_ as-03493 destroyed. 01330_ The unstable cave ceiling collapses. 01345_ Acquired 18 matter. 01353_ D-53 Grenadier destroyed. 01353_ G-47 Trooper destroyed. 01354_ The unstable cave ceiling collapses. 01354_ Imp. Hover Unit destroyed. 01355_ The unstable cave ceiling collapses. 01356_ G-34 Mercenary destroyed. 01357_ The unstable cave ceiling collapses. 01362_ Destroyed Ion Engine. 01364_ The unstable cave ceiling collapses. Map ----- +----------------------------------------------------+ | ???????????# #### ### #?????????????? | | ???????????# ## ##??# #?????????????? | | ??????????????## ##???# #?????????????? | | ???????????????####?????##### #?????????????? | | ????????????????????????????# ##????????????? | | ????????????????????????##### ##???????????? | | ???????????????????????## #???????????? | | ???????????????????????# #???????????? | | ???????????????????????# #???????????? | | ???????????????????????# ######???????????? | | ???????????????????????# ##????????????????? | | ???????????????????????# ##????????????????? | | ???????????????????????## ##???????????????? | | ????????????????????????# ##??????????????? | | ????????????????????????# ##??????? ???? | | ????????????????????????## ##???? #????? | | ???????????????????####### """ ### #????? | | ??????????????????## ## """ #????? | | ????????????####### """ ??????? | | ????????????# #### ??????? | | ????????????# ### # ## # ##????## ?????? | | ????????????# #?# ## ## #??????????????? | | ????????????# #?# t ##### #?????????????? | | ????????????# #?#### ##?## #?????????????? | | ????????????# #???# #??## #?????????????? | | ????????????# #????##@ #????###?????????????? | | ????????????# #??# #???????????????????? | | ????????????# ## #???????????????????? | | ????????????# #???????????????????? | | ????????????# ##???????????????????? | | ??????????? ????????????????????? | | ??????????### ???????????????????? | | ???????????# g ???????????????????? | | ??????????# %??????????????????? | | ?????????# # # % ?????????????????? | | ??????????# ?# ?????????????????? | | ?????????? ## #?? # ????????????????? | | ????????????# # ##???######????????????????? | | ??????????????## ???????????????????????????? | | ????????????????? ???????????????????????????? | | ?????????????????????????????????????????????? | | ?????????????????????????????????????????????? | | ?????????????????????????????????????????????? | | ?????????????????????????????????????????????? | | ?????????????????????????????????????????????? | | ?????????????????????????????????????????????? | | ?????????????????????????????????????????????? | | ?????????????????????????????????????????????? | | ?????????????????????????????????????????????? | | ?????????????????????????????????????????????? | +----------------------------------------------------+ Best States ------------- Heat Dissipation 28 Energy Generation 10 Energy Capacity 250 Matter Stores 300 Matter Capacity 300 Sight Range 18 Terrain Scan Density 10 Armor Coverage 225 Evasion (%) 55 Item Schematics ----------------- None Robot Schematics ------------------ None Fabricated ------------ Nothing Repaired ---------- Nothing Alien Tech Used ----------------- None Achievements -------------- None Challenges ------------ None Game ------ Seed AccelerationActiveNanosword Manual? 0 Play Time 00:07:21 Cumulative 9.8 hours Start 2025.10.20 @ 13:04:16 End 2025.10.20 @ 13:10:32 Sessions 1 Manual Loads 0 Difficulty Rogue Special Mode None Game No. 29 Rogue 15 Adventurer 14 Explorer 0 Win Type - Total 0 Types 0/0/0/0/0/0/0/0/0/0 Lore% 5 Gallery% 16 Achievement% 22 Wizard Run 0 Options --------- Layout 1 ASCII 0 Keyboard 1 Movement Numpad Keybinds 0 Fullscreen 1 Font 24/Smallcaps Map View 50x35 Zoom Use 0% Tactical HUD 1 Map Filters NONE Filters NONE Steam 0 RUN: 1502986f-dee7-4843-9690-4020ae7de879